fUSD/lending_fUSD_20250110
["ID","MTS","AMOUNT","RATE_DAILY","PERIOD"]
[348461363,1736538638280,-500.0,0.00010269,2]
[348461364,1736538638289,-500.0,0.00010269,2]
[348461365,1736538638299,-500.0,0.00010269,2]
[348461366,1736538638310,-500.0,0.00010269,2]
[348461367,1736538638321,-703.43,0.00010269,2]
[348461368,1736538638331,-718.31,0.00010269,2]
[348461369,1736538638341,-1371.99,0.00010269,2]
[348461370,1736538638351,-1820.97,0.00010269,2]
[348461371,1736538638362,-500.0,0.00010269,2]
[348461372,1736538638373,-500.0,0.00010269,2]
[348461373,1736538638383,-731.79,0.00010269,2]
[348461374,1736538638392,-500.0,0.00010269,2]
[348461375,1736538638402,-883.78,0.00010269,2]
[348461376,1736538638412,-1027.4,0.00010269,2]
[348461377,1736538638421,-500.0,0.00010269,2]
[348461378,1736538638431,-500.0,0.00010269,2]
[348461380,1736538638440,-661.8,0.00010269,2]
[348461382,1736538638450,-795.73,0.00010269,2]
[348461384,1736538638459,-1138.48,0.00010269,2]
[348461385,1736538638469,-500.0,0.00010269,2]
[348461386,1736538638478,-500.0,0.00010269,2]
[348461387,1736538638488,-524.59,0.00010269,2]
[348461388,1736538638497,-581.97,0.00010269,2]
[348461390,1736538638506,-527.39,0.00010269,2]
[348461391,1736538638516,-551.2,0.00010269,2]
[348461392,1736538638525,-1882.51,0.00010269,2]
[348461393,1736538638534,-500.0,0.00010269,2]
[348461394,1736538638543,-1322.02,0.00010269,2]
[348461395,1736538638552,-657.64,0.00010269,2]
[348461396,1736538638562,-1000.0,0.00010269,2]
[348461397,1736538638573,-1744.59,0.00010269,2]
[348461398,1736538638583,-818.79,0.00010269,2]
[348461399,1736538638592,-500.0,0.0001027,2]
[348461400,1736538638602,-500.0,0.0001027,2]
[348461401,1736538638611,-781.57,0.0001027,2]
[348461402,1736538638620,-500.0,0.00010273,2]
[348461403,1736538638630,-500.0,0.00010273,2]
[348461404,1736538638639,-500.0,0.00010273,2]
[348461405,1736538638648,-500.0,0.00010273,2]
[348461406,1736538638658,-500.0,0.00010273,2]
[348461407,1736538638667,-500.0,0.00010273,2]
[348461408,1736538638678,-500.0,0.00010273,2]
[348461409,1736538638687,-500.0,0.00010273,2]
[348461410,1736538638697,-500.0,0.00010273,2]
[348461411,1736538638706,-500.0,0.00010273,2]
[348461412,1736538638716,-500.0,0.00010273,2]
[348461413,1736538638726,-500.0,0.00010273,2]
[348461414,1736538638736,-203.33685573,0.00010273,2]
[348461415,1736538638746,-500.0,0.00010273,2]
[348461416,1736538638756,-500.0,0.00010273,2]
[348461417,1736538638766,-500.0,0.00010273,2]
[348461418,1736538638776,-507.16,0.00010273,2]
[348461419,1736538638785,-1250.04,0.00010273,2]
[348461420,1736538638794,-500.0,0.00010273,2]
[348461421,1736538638803,-1754.31,0.00010273,2]
[348461422,1736538638812,-500.0,0.00010273,2]
[348461423,1736538638824,-500.0,0.00010273,2]
[348461424,1736538638834,-500.0,0.00010273,2]
[348461425,1736538638843,-500.0,0.00010273,2]
[348461426,1736538638853,-500.0,0.00010273,2]
[348461427,1736538638863,-500.0,0.00010273,2]
[348461428,1736538638872,-500.0,0.00010273,2]
[348461429,1736538638882,-500.0,0.00010273,2]
[348461430,1736538638892,-698.78,0.00010273,2]
[348461431,1736538638903,-500.0,0.00010273,2]
[348461432,1736538638914,-355.72,0.00010273,2]
[348461433,1736538638924,-500.0,0.00010273,2]
[348461434,1736538638933,-500.0,0.00010273,2]
[348461435,1736538638943,-500.0,0.00010273,2]
[348461436,1736538638952,-620.27431501,0.00010273,2]
[348461437,1736538638962,-500.0,0.00010273,2]
[348461438,1736538638972,-500.0,0.00010273,2]
[348461439,1736538638981,-431.09,0.00010273,2]
[348461440,1736538638990,-500.0,0.00010273,2]
[348461441,1736538638999,-853.68,0.00010273,2]
[348461442,1736538639008,-500.0,0.00010273,2]
[348461443,1736538639018,-780.35,0.00010273,2]
[348461444,1736538639027,-1004.71,0.00010341,2]
[348461445,1736538639036,-151.3948605,0.00010443,2]
[348461446,1736538639046,-579.21,0.00010446,2]
[348461447,1736538639056,-420.0,0.00010464,2]
[348461448,1736538639069,-1744.59,0.00010542,2]
[348461449,1736538639082,-500.0,0.00010543,2]
[348461450,1736538639092,-500.0,0.00010543,2]
[348461451,1736538639102,-500.0,0.00010543,2]
[348461452,1736538639112,-500.0,0.00010543,2]
[348461453,1736538639123,-500.0,0.00010543,2]
[348461454,1736538639132,-500.0,0.00010543,2]
[348461455,1736538639142,-500.0,0.00010543,2]
[348461456,1736538639152,-500.0,0.00010543,2]
[348461457,1736538639162,-718.31,0.00010543,2]
[348461458,1736538639173,-1431.64,0.00010543,2]
[348461459,1736538639182,-1371.99,0.00010543,2]
[348461460,1736538639192,-1820.97,0.00010543,2]
[348461461,1736538639201,-500.0,0.00010543,2]
[348461462,1736538639211,-500.0,0.00010543,2]
[348461463,1736538639221,-731.79,0.00010543,2]
[348461464,1736538639232,-538.66,0.00010543,2]
[348461465,1736538639242,-1027.4,0.00010543,2]
[348461466,1736538639252,-500.0,0.00010543,2]
[348461467,1736538639262,-500.0,0.00010543,2]
[348461468,1736538639272,-661.8,0.00010543,2]
[348461469,1736538639281,-795.73,0.00010543,2]
[348461470,1736538639290,-1138.48,0.00010543,2]
[348461471,1736538639300,-500.0,0.00010543,2]
[348461472,1736538639311,-500.0,0.00010543,2]
[348461473,1736538639323,-524.59,0.00010543,2]
[348461474,1736538639333,-581.97,0.00010543,2]
[348461475,1736538639343,-527.39,0.00010543,2]
[348461476,1736538639352,-551.2,0.00010543,2]
[348461477,1736538639362,-1882.51,0.00010543,2]
[348461478,1736538639372,-500.0,0.00010543,2]
[348461479,1736538639381,-1322.02,0.00010543,2]
[348461480,1736538639391,-657.64,0.00010543,2]
[348461481,1736538639400,-1000.0,0.00010543,2]
[348461482,1736538639409,-818.79,0.00010543,2]
[348461483,1736538639418,-597.93649051,0.00010544,2]
[348461484,1736538639428,-500.0,0.00010544,2]
[348461485,1736538639438,-500.0,0.00010544,2]
[348461486,1736538639663,-712.52,0.00010544,2]
[348461487,1736538639674,-500.0,0.00010544,2]
[348461488,1736538639684,-851.73,0.00010544,2]
[348461489,1736538639696,-500.0,0.00010544,2]
[348461490,1736538639705,-500.0,0.00010544,2]
[348461491,1736538639717,-500.0,0.00010544,2]
[348461492,1736538639727,-500.0,0.00010544,2]
[348461493,1736538639738,-1369.29,0.00010544,2]
[348461494,1736538639747,-500.0,0.00010544,2]
[348461495,1736538639757,-500.0,0.00010544,2]
[348461496,1736538639767,-500.0,0.00010544,2]
[348461497,1736538639777,-1243.02,0.00010544,2]
[348461498,1736538639787,-781.57,0.00010544,2]
[348461499,1736538639799,-3152.19,0.00010544,2]
[348461500,1736538639811,-939.99,0.00010544,2]
[348461501,1736538639824,-500.0,0.00010544,2]
[348461502,1736538639833,-500.0,0.00010544,2]
[348461503,1736538639843,-500.0,0.00010544,2]
[348461504,1736538639853,-585.9,0.00010544,2]
[348461505,1736538639862,-1923.3,0.00010544,2]
[348461506,1736538639872,-1370.12,0.00010544,2]
[348461507,1736538639881,-1227.04,0.00010544,2]
[348461508,1736538639891,-500.0,0.00010544,2]
[348461509,1736538639900,-1916.08,0.00010544,2]
[348461510,1736538639909,-1658.46,0.00010544,2]
[348461511,1736538639919,-500.0,0.00010544,2]
[348461512,1736538639929,-546.18,0.00010544,2]
[348461513,1736538639941,-500.0,0.00010544,2]
[348461514,1736538639951,-500.0,0.00010544,2]
[348461515,1736538639960,-500.0,0.00010544,2]
[348461516,1736538639969,-2252.76,0.00010544,2]
[348461517,1736538639979,-1172.88,0.00010544,2]
[348461518,1736538639988,-789.38,0.00010545,2]
[348461519,1736538639998,-817.86,0.00010545,2]
[348461520,1736538640007,-1079.5,0.00010545,2]
[348461521,1736538640016,-1737.63,0.00010545,2]
[348461522,1736538640025,-1025.61,0.00010545,2]
[348461523,1736538640035,-500.0,0.00010545,2]
[348461524,1736538640044,-544.11,0.00010545,2]
[348461525,1736538640054,-1582.77,0.00010545,2]
[348461526,1736538640064,-500.0,0.00010545,2]
[348461527,1736538640075,-500.0,0.00010545,2]
[348461528,1736538640089,-500.0,0.00010545,2]
[348461529,1736538640099,-531.44,0.00010545,2]
[348461530,1736538640108,-689.98,0.00010545,2]
[348461531,1736538640119,-518.31,0.00010545,2]
[348461532,1736538640128,-500.0,0.00010545,2]
[348461533,1736538640138,-500.0,0.00010545,2]
[348461534,1736538640147,-151.39486047,0.00010546,2]
[348461535,1736538640159,-537.80743117,0.00010546,2]
[348461536,1736538640169,-500.0,0.00010546,2]
[348461537,1736538640179,-500.0,0.00010546,2]
[348461538,1736538640190,-500.0,0.00010546,2]
[348461539,1736538640199,-500.0,0.00010546,2]
[348461540,1736538640209,-500.0,0.00010546,2]
[348461541,1736538640218,-500.0,0.00010546,2]
[348461542,1736538640231,-500.0,0.00010546,2]
[348461543,1736538640241,-500.0,0.00010546,2]
[348461544,1736538640251,-500.0,0.00010546,2]
[348461545,1736538640260,-500.0,0.00010546,2]
[348461546,1736538640270,-500.0,0.00010546,2]
[348461547,1736538640279,-500.0,0.00010546,2]
[348461548,1736538640289,-500.0,0.00010546,2]
[348461549,1736538640298,-500.0,0.00010546,2]
[348461550,1736538640308,-500.0,0.00010546,2]
[348461551,1736538640318,-500.0,0.00010546,2]
[348461552,1736538640328,-500.0,0.00010546,2]
[348461553,1736538640337,-500.0,0.00010546,2]
[348461554,1736538640346,-456.13881441,0.00010546,2]
[348461555,1736538640357,-189.33468808,0.00010546,2]
[348461556,1736538640366,-500.0,0.00010546,2]
[348461557,1736538640375,-500.0,0.00010546,2]
[348461558,1736538640384,-500.0,0.00010546,2]
[348461559,1736538640394,-500.0,0.00010546,2]
[348461560,1736538640403,-500.0,0.00010546,2]
[348461561,1736538640412,-500.0,0.00010546,2]
[348461562,1736538640421,-500.0,0.00010546,2]
[348461563,1736538640430,-500.0,0.00010546,2]
[348461564,1736538640440,-500.0,0.00010546,2]
[348461565,1736538640449,-500.0,0.00010546,2]
[348461566,1736538640459,-500.0,0.00010546,2]
[348461567,1736538640469,-500.0,0.00010546,2]
[348461568,1736538640478,-500.0,0.00010546,2]
[348461569,1736538640487,-500.0,0.00010546,2]
[348461570,1736538640496,-500.0,0.00010546,2]
[348461571,1736538640507,-500.0,0.00010546,2]
[348461572,1736538640516,-500.0,0.00010546,2]
[348461573,1736538640525,-500.0,0.00010546,2]
[348461574,1736538640534,-500.0,0.00010546,2]
[348461575,1736538640543,-500.0,0.00010546,2]
[348461576,1736538640552,-500.0,0.00010546,2]
[348461577,1736538640561,-500.0,0.00010546,2]
[348461578,1736538640572,-500.0,0.00010546,2]
[348461579,1736538640581,-500.0,0.00010546,2]
[348461580,1736538640590,-500.0,0.00010546,2]
[348461581,1736538640599,-500.0,0.00010546,2]
[348461582,1736538640609,-500.0,0.00010546,2]
[348461583,1736538640619,-500.0,0.00010546,2]
[348461584,1736538640629,-500.0,0.00010546,2]
[348461585,1736538640638,-500.0,0.00010546,2]
[348461586,1736538640647,-500.0,0.00010546,2]
[348461587,1736538640658,-500.0,0.00010546,2]
[348461588,1736538640668,-500.0,0.00010546,2]
[348461589,1736538640677,-500.0,0.00010546,2]
[348461590,1736538640686,-500.0,0.00010546,2]
[348461591,1736538640695,-500.0,0.00010546,2]
[348461592,1736538640704,-500.0,0.00010546,2]
[348461593,1736538640713,-500.0,0.00010546,2]
[348461594,1736538640723,-500.0,0.00010546,2]
[348461595,1736538640732,-500.0,0.00010546,2]
[348461596,1736538640741,-500.0,0.00010546,2]
[348461597,1736538640750,-500.0,0.00010546,2]
[348461598,1736538640760,-500.0,0.00010546,2]
[348461599,1736538640769,-500.0,0.00010546,2]
[348461600,1736538640778,-500.0,0.00010546,2]
[348461601,1736538640787,-465.56486164,0.00010546,2]
[348461602,1736538640802,-34.43513836,0.00010546,2]
[348461603,1736538640811,-500.0,0.00010546,2]
[348461604,1736538640825,-500.0,0.00010546,2]
[348461605,1736538640834,-500.0,0.00010546,2]
[348461606,1736538640844,-500.0,0.00010546,2]
[348461607,1736538640853,-500.0,0.00010546,2]
[348461608,1736538640863,-594.9492331,0.00010546,2]
[348461609,1736538640872,-70.61562854,0.00010546,2]
[348461610,1736538640884,-429.38437146,0.00010546,2]
[348461611,1736538640894,-500.0,0.00010546,2]
[348461612,1736538640904,-500.0,0.00010546,2]
[348461613,1736538640914,-500.0,0.00010547,2]
[348461614,1736538640924,-500.0,0.00010547,2]
[348461615,1736538640934,-490.51164988,0.00010547,2]
[348461616,1736538640945,-292.47815401,0.00010547,2]
[348461617,1736538640957,-235.74560071,0.00010547,2]
[348461618,1736538640967,-500.0,0.00010547,2]
[348461619,1736538640977,-500.0,0.00010547,2]
[348461620,1736538640986,-500.0,0.00010547,2]
[348461621,1736538640995,-392.84089971,0.00010547,2]
[348461622,1736538641005,-500.0,0.00010547,2]
[348461623,1736538641016,-500.0,0.00010547,2]
[348461624,1736538641026,-537.77868693,0.00010547,2]
[348461625,1736538641037,-500.0,0.00010547,2]
[348461626,1736538641047,-500.0,0.00010547,2]
[348461627,1736538641057,-500.0,0.00010547,2]
[348461628,1736538641068,-507.16,0.00010547,2]
[348461629,1736538641082,-500.0,0.00010547,2]
[348461630,1736538641092,-1250.04,0.00010547,2]
[348461631,1736538641101,-1754.31,0.00010547,2]
[348461632,1736538641112,-500.0,0.00010547,2]
[348461633,1736538641123,-500.0,0.00010547,2]
[348461634,1736538641133,-500.0,0.00010547,2]
[348461635,1736538641144,-500.0,0.00010547,2]
[348461636,1736538641156,-500.0,0.00010547,2]
[348461637,1736538641165,-500.0,0.00010547,2]
[348461638,1736538641175,-500.0,0.00010547,2]
[348461639,1736538641184,-698.78,0.00010547,2]
[348461640,1736538641194,-500.0,0.00010547,2]
[348461641,1736538641203,-500.0,0.00010547,2]
[348461642,1736538641214,-500.0,0.00010547,2]
[348461643,1736538641224,-500.0,0.00010547,2]
[348461644,1736538641235,-500.0,0.00010547,2]
[348461645,1736538641244,-500.0,0.00010547,2]
[348461646,1736538641255,-853.68,0.00010547,2]
[348461647,1736538641265,-500.0,0.00010547,2]
[348461648,1736538641274,-780.35,0.00010547,2]
[348461649,1736538641285,-1744.59,0.00010599,2]
[348461650,1736538641295,-151.39486047,0.00010649,2]
[348461651,1736538641304,-159.74664617,0.000107,2]
[348461652,1736538641314,-1000.0,0.0001072,2]
[348461653,1736538641325,-151.39486047,0.00010752,2]
[348461654,1736538641335,-500.0,0.00010817,2]
[348461655,1736538641344,-500.0,0.00010817,2]
[348461656,1736538641354,-500.0,0.00010817,2]
[348461657,1736538641363,-500.0,0.00010817,2]
[348461658,1736538641373,-500.0,0.00010817,2]
[348461659,1736538641382,-500.0,0.00010817,2]
[348461660,1736538641391,-500.0,0.00010817,2]
[348461661,1736538641402,-500.0,0.00010817,2]
[348461662,1736538641412,-500.0,0.00010817,2]
[348461663,1736538641421,-718.31,0.00010817,2]
[348461664,1736538641431,-616.42394701,0.00010817,2]
[348461665,1736538641452,-326.45,0.00010817,2]
[348461666,1736538641464,-488.76605299,0.00010817,2]
[348461667,1736538641473,-1371.99,0.00010817,2]
[348461668,1736538641483,-1820.97,0.00010817,2]
[348461669,1736538641492,-500.0,0.00010817,2]
[348461670,1736538641502,-500.0,0.00010817,2]
[348461671,1736538641512,-731.79,0.00010817,2]
[348461672,1736538641522,-1027.4,0.00010817,2]
[348461673,1736538641532,-500.0,0.00010817,2]
[348461674,1736538641542,-661.8,0.00010817,2]
[348461675,1736538641551,-795.73,0.00010817,2]
[348461676,1736538641562,-890.52994701,0.00010817,2]
[348461677,1736538641587,-247.95005299,0.00010817,2]
[348461678,1736538641596,-500.0,0.00010817,2]
[348461679,1736538641605,-500.0,0.00010817,2]
[348461680,1736538641615,-524.59,0.00010817,2]
[348461681,1736538641623,-581.97,0.00010817,2]
[348461682,1736538641632,-551.2,0.00010817,2]
[348461683,1736538641641,-1882.51,0.00010817,2]
[348461684,1736538641651,-500.0,0.00010817,2]
[348461685,1736538641660,-1322.02,0.00010817,2]
[348461686,1736538641670,-657.64,0.00010817,2]
[348461687,1736538641679,-1000.0,0.00010817,2]
[348461688,1736538641689,-1744.59,0.00010817,2]
[348461689,1736538641698,-818.79,0.00010817,2]
[348461690,1736538641708,-712.52,0.00010818,2]
[348461691,1736538641717,-851.73,0.00010818,2]
[348461692,1736538641727,-500.0,0.00010818,2]
[348461693,1736538641738,-500.0,0.00010818,2]
[348461694,1736538641748,-500.0,0.00010818,2]
[348461695,1736538641757,-1369.29,0.00010818,2]
[348461696,1736538641766,-500.0,0.00010818,2]
[348461697,1736538641775,-500.0,0.00010818,2]
[348461698,1736538641784,-605.63,0.00010818,2]
[348461699,1736538641793,-1243.02,0.00010818,2]
[348461700,1736538641803,-781.57,0.00010818,2]
[348461701,1736538641813,-3152.19,0.00010818,2]
[348461702,1736538641825,-939.99,0.00010818,2]
[348461703,1736538641835,-500.0,0.00010818,2]
[348461704,1736538641845,-500.0,0.00010818,2]
[348461705,1736538641855,-500.0,0.00010818,2]
[348461706,1736538641864,-585.9,0.00010818,2]
[348461707,1736538641874,-1923.3,0.00010818,2]
[348461708,1736538641883,-1370.12,0.00010818,2]
[348461709,1736538641893,-1227.04,0.00010818,2]
[348461710,1736538641902,-1916.08,0.00010818,2]
[348461711,1736538641912,-1658.46,0.00010818,2]
[348461712,1736538641921,-500.0,0.00010818,2]
[348461713,1736538641930,-546.18,0.00010818,2]
[348461714,1736538641939,-500.0,0.00010818,2]
[348461715,1736538641949,-500.0,0.00010818,2]
[348461716,1736538641959,-500.0,0.00010818,2]
[348461717,1736538641968,-2252.76,0.00010818,2]
[348461718,1736538641978,-1172.88,0.00010818,2]
[348461719,1736538641987,-789.38,0.00010819,2]
[348461720,1736538641997,-817.86,0.00010819,2]
[348461721,1736538642006,-1079.5,0.00010819,2]
[348461722,1736538642016,-1737.63,0.00010819,2]
[348461723,1736538642026,-1025.61,0.00010819,2]
[348461724,1736538642035,-500.0,0.00010819,2]
[348461725,1736538642046,-544.11,0.00010819,2]
[348461726,1736538642056,-1582.77,0.00010819,2]
[348461727,1736538642066,-500.0,0.00010819,2]
[348461728,1736538642083,-500.0,0.00010819,2]
[348461729,1736538642093,-500.0,0.00010819,2]
[348461730,1736538642102,-531.44,0.00010819,2]
[348461731,1736538642112,-689.98,0.00010819,2]
[348461732,1736538642123,-518.31,0.00010819,2]
[348461733,1736538642132,-500.0,0.00010819,2]
[348461734,1736538642141,-815.88,0.0001082,2]
[348461735,1736538642151,-1244.23,0.0001082,2]
[348461736,1736538642161,-529.86,0.0001082,2]
[348461737,1736538642170,-500.0,0.0001082,2]
[348461738,1736538642179,-500.0,0.0001082,2]
[348461739,1736538642188,-171.84,0.0001082,2]
[348461740,1736538642198,-500.0,0.0001082,2]
[348461741,1736538642208,-500.0,0.0001082,2]
[348461742,1736538642217,-358.851055,0.0001082,2]
[348461743,1736538642228,-500.0,0.0001082,2]
[348461744,1736538642238,-500.0,0.0001082,2]
[348461745,1736538642249,-500.0,0.0001082,2]
[348461746,1736538642259,-1378.96,0.0001082,2]
[348461747,1736538642268,-500.0,0.0001082,2]
[348461748,1736538642278,-396.380051,0.0001082,2]
[348461749,1736538642288,-500.0,0.0001082,2]
[348461750,1736538642298,-500.0,0.0001082,2]
[348461751,1736538642308,-500.0,0.0001082,2]
[348461752,1736538642323,-500.0,0.0001082,2]
[348461753,1736538642333,-500.0,0.0001082,2]
[348461754,1736538642342,-500.0,0.0001082,2]
[348461755,1736538642352,-500.0,0.0001082,2]
[348461756,1736538642363,-500.0,0.0001082,2]
[348461757,1736538642373,-500.0,0.0001082,2]
[348461758,1736538642382,-500.0,0.0001082,2]
[348461759,1736538642392,-169.582854,0.0001082,2]
[348461760,1736538642401,-500.0,0.0001082,2]
[348461761,1736538642410,-1422.71,0.0001082,2]
[348461762,1736538642421,-500.0,0.0001082,2]
[348461763,1736538642431,-369.18651094,0.0001082,2]
[348461764,1736538642441,-500.0,0.0001082,2]
[348461765,1736538642452,-500.0,0.0001082,2]
[348461766,1736538642462,-176.720214,0.0001082,2]
[348461767,1736538642472,-500.0,0.0001082,2]
[348461768,1736538642482,-172.205389,0.0001082,2]
[348461769,1736538642492,-500.0,0.0001082,2]
[348461770,1736538642501,-500.0,0.0001082,2]
[348461771,1736538642511,-500.0,0.0001082,2]
[348461774,1736538642521,-500.0,0.0001082,2]
[348461775,1736538642531,-500.0,0.0001082,2]
[348461776,1736538642541,-568.99,0.0001082,2]
[348461777,1736538642551,-188.006979,0.0001082,2]
[348461778,1736538642560,-500.0,0.0001082,2]
[348461779,1736538642575,-500.0,0.0001082,2]
[348461780,1736538642585,-500.0,0.0001082,2]
[348461781,1736538642595,-500.0,0.0001082,2]
[348461782,1736538642604,-500.0,0.0001082,2]
[348461783,1736538642614,-500.0,0.0001082,2]
[348461784,1736538642625,-527.18,0.0001082,2]
[348461785,1736538642635,-500.0,0.0001082,2]
[348461786,1736538642645,-500.0,0.0001082,2]
[348461787,1736538642656,-500.0,0.0001082,2]
[348461789,1736538642665,-500.0,0.0001082,2]
[348461790,1736538642675,-500.0,0.0001082,2]
[348461791,1736538642686,-500.0,0.0001082,2]
[348461792,1736538642695,-500.0,0.0001082,2]
[348461793,1736538642705,-500.0,0.0001082,2]
[348461794,1736538642714,-500.0,0.0001082,2]
[348461795,1736538642724,-500.0,0.0001082,2]
[348461796,1736538642734,-500.0,0.0001082,2]
[348461797,1736538642744,-500.0,0.0001082,2]
[348461798,1736538642753,-541.44,0.0001082,2]
[348461799,1736538642763,-500.0,0.0001082,2]
[348461800,1736538642772,-500.0,0.0001082,2]
[348461801,1736538642782,-500.0,0.0001082,2]
[348461802,1736538642791,-500.0,0.0001082,2]
[348461803,1736538642801,-500.0,0.0001082,2]
[348461804,1736538642811,-500.0,0.0001082,2]
[348461805,1736538642825,-818.14,0.0001082,2]
[348461806,1736538642835,-500.0,0.0001082,2]
[348461807,1736538642845,-172.474875,0.0001082,2]
[348461808,1736538642856,-500.0,0.0001082,2]
[348461809,1736538642867,-500.0,0.0001082,2]
[348461810,1736538642877,-500.0,0.0001082,2]
[348461811,1736538642893,-500.0,0.0001082,2]
[348461812,1736538642903,-500.0,0.0001082,2]
[348461813,1736538642914,-732.28,0.0001082,2]
[348461814,1736538642924,-500.0,0.0001082,2]
[348461815,1736538642934,-188.006979,0.0001082,2]
[348461816,1736538642943,-564.4029688,0.0001082,2]
[348461817,1736538642953,-500.0,0.0001082,2]
[348461818,1736538642963,-500.0,0.0001082,2]
[348461819,1736538642972,-500.0,0.0001082,2]
[348461820,1736538642982,-500.0,0.0001082,2]
[348461821,1736538642992,-600.83,0.0001082,2]
[348461822,1736538643002,-349.58309458,0.0001082,2]
[348461823,1736538643012,-500.0,0.0001082,2]
[348461824,1736538643022,-500.0,0.0001082,2]
[348461825,1736538643031,-500.0,0.0001082,2]
[348461826,1736538643041,-2032.18,0.0001082,2]
[348461827,1736538643050,-500.0,0.00010821,2]
[348461828,1736538643060,-500.0,0.00010821,2]
[348461829,1736538643073,-500.0,0.00010821,2]
[348461830,1736538643087,-500.0,0.00010821,2]
[348461831,1736538643097,-500.0,0.00010821,2]
[348461832,1736538643107,-500.0,0.00010821,2]
[348461833,1736538643117,-406.20448323,0.00010821,2]
[348461834,1736538643127,-500.0,0.00010821,2]
[348461835,1736538643137,-500.0,0.00010821,2]
[348461836,1736538643146,-507.16,0.00010821,2]
[348461837,1736538643158,-500.0,0.00010821,2]
[348461838,1736538643168,-1250.04,0.00010821,2]
[348461839,1736538643178,-1754.31,0.00010821,2]
[348461840,1736538643188,-500.0,0.00010821,2]
[348461841,1736538643198,-269.3303955,0.00010821,2]
[348461842,1736538643209,-500.0,0.00010821,2]
[348461843,1736538643219,-259.96067122,0.00010821,2]
[348461844,1736538643230,-500.0,0.00010821,2]
[348461845,1736538643241,-500.0,0.00010821,2]
[348461846,1736538643251,-698.78,0.00010821,2]
[348461847,1736538643261,-500.0,0.00010821,2]
[348461848,1736538643271,-500.0,0.00010821,2]
[348461849,1736538643282,-500.0,0.00010821,2]
[348461850,1736538643293,-500.0,0.00010821,2]
[348461851,1736538643303,-500.0,0.00010821,2]
[348461852,1736538643312,-500.0,0.00010821,2]
[348461853,1736538643325,-853.68,0.00010821,2]
[348461854,1736538643335,-500.0,0.00010821,2]
[348461855,1736538643345,-780.35,0.00010821,2]
[348461856,1736538643355,-151.39486047,0.00010855,2]
[348461857,1736538643365,-159.39650356,0.000109,2]
[348461858,1736538643375,-202.66699731,0.000109,2]
[348461859,1736538643385,-2500.0,0.000109,3]
[348461860,1736538643396,-487.31,0.00010921,2]
[348461861,1736538643406,-151.39486047,0.00010957,2]
[348461862,1736538643415,-150.0,0.00010959,2]
[348461863,1736538643425,-500.0,0.00010986,2]
[348461864,1736538643434,-255.0,0.00010998,2]
[348461865,1736538643445,-5100.0,0.00011,4]
[348461866,1736538643455,-550.0,0.00011,2]
[348461867,1736538643465,-202.66699719,0.00011018,2]
[348461868,1736538643475,-1000.0,0.00011054,2]
[348461869,1736538643484,-151.39486047,0.0001106,2]